bitfinex-derivatives/quotes_SOLF0:USTF0_20240910
["timestamp","ask_amount","ask_price","bid_price","bid_amount"]
[1725926631872,30.21,134.67,134.61,7.98]
[1725926632182,30.21,134.67,134.62,3.73439627]
[1725926632370,30.21,134.67,134.61,7.98]
[1725926632570,1.2901,134.69,134.63,7.98]
[1725926632771,1.3914,134.7,134.66,7.98]
[1725926632980,30.21,134.74,134.68,7.98]
[1725926633479,7.98,134.75,134.69,11.74047567]
[1725926633679,22.23,134.75,134.69,7.98]
[1725926633866,7.98,134.74,134.69,7.98]
[1725926634071,22.23,134.75,134.7,3.77755187]
[1725926635076,22.23,134.75,134.7,7.48835187]
[1725926635077,3.7101,134.74,134.7,7.48835187]
[1725926635283,3.7101,134.74,134.7,15.46835187]
[1725926636173,25.9397,134.75,134.71,11.6905]
[1725926637281,7.7202,134.76,134.71,11.6905]
[1725926637473,22.23,134.75,134.71,11.6905]
[1725926637692,7.7202,134.76,134.49,11.1501]
[1725926637693,22.23,134.72,134.66,7.98]
[1725926637890,3.7116,134.68,134.66,7.98]
[1725926638090,7.98,134.7,134.65,3.66145878]
[1725926638292,7.98,134.7,134.64,7.98]
[1725926638489,3.7117,134.68,134.65,3.72233462]
[1725926638687,10.7679,134.71,134.65,7.98]
[1725926638884,1.2901,134.76,134.67,7.98]
[1725926639087,7.98,134.74,134.67,7.98]
[1725926639289,2.7879,134.75,134.68,3.80214135]
[1725926639483,7.98,134.74,134.68,3.80214135]
[1725926639689,7.98,134.74,134.67,7.98]
[1725926639997,3.7102,134.73,134.68,11.6914]
[1725926640194,2.7879,134.75,134.71,7.98]
[1725926640590,7.98,134.77,134.72,3.7104]
[1725926640792,7.98,134.77,134.71,7.98]
[1725926641689,3.7098,134.75,134.71,7.98]
[1725926641894,7.98,134.77,134.72,7.98]
[1725926642091,7.98,134.79,134.72,7.98]
[1725926642393,3.7091,134.77,134.74,7.98]
[1725926642598,2.6233,134.8,134.76,7.98]
[1725926643096,3.7078,134.82,134.77,3.709]
[1725926643398,3.7078,134.82,134.78,7.98]
[1725926643599,3.7075,134.83,134.79,7.98]
[1725926644396,3.7077,134.82,134.79,7.98]
[1725926644899,7.98,134.86,134.8,7.98]
[1725926645492,26.173,134.91,134.8,7.98]
[1725926645692,7.98,134.85,134.8,7.98]
[1725926646097,3.7073,134.84,134.8,7.98]
[1725926646698,7.98,134.85,134.8,7.98]
[1725926647003,7.98,134.85,134.8,11.63205958]
[1725926647300,7.98,134.86,134.8,11.63205958]
[1725926647491,7.98,134.86,134.82,7.98]
[1725926648096,3.707,134.85,134.82,7.98]
[1725926649494,30.21,134.84,134.6,7.404]
[1725926649698,7.98,134.81,134.67,3.9384]
[1725926649899,7.98,134.8,134.74,7.98]
[1725926650098,3.7088,134.78,134.74,7.98]
[1725926650301,7.98,134.8,134.74,7.98]
[1725926650803,3.7089,134.78,134.74,7.98]
[1725926652305,3.7089,134.78,134.73,7.48344653]
[1725926653604,3.7089,134.78,134.74,3.7099]
[1725926653801,3.7086,134.79,134.74,3.7099]
[1725926654001,25.94149662,134.83,134.74,16.1799]
[1725926654610,3.7088,134.79,134.74,16.1799]
[1725926655003,25.94149662,134.83,134.74,16.1799]
[1725926655801,3.7088,134.78,134.74,16.1799]
[1725926661705,3.7091,134.77,134.74,16.1799]
[1725926661902,25.94149662,134.83,134.73,5.10424653]
[1725926662208,3.7092,134.77,134.73,5.10424653]
[1725926662614,3.7092,134.77,134.73,8.81424653]
[1725926662906,34.7,134.82,134.73,5.10424653]
[1725926664616,3.709,134.78,134.73,8.81414653]
[1725926664918,3.709,134.78,134.73,5.10424653]
[1725926665215,3.7091,134.77,134.73,5.10424653]
[1725926665713,3.7091,134.77,134.73,8.81424653]
[1725926665906,3.7088,134.78,134.73,5.10424653]
[1725926666102,25.95883944,134.83,134.73,5.10424653]
[1725926666611,3.7088,134.78,134.74,3.7098]
[1725926672116,3.7088,134.78,134.76,7.98]
[1725926672624,3.7088,134.78,134.75,3.7096]
[1725926672920,3.7088,134.78,134.76,7.98]
[1725926679222,3.7086,134.79,134.76,7.98]
[1725926679425,3.7086,134.79,134.76,11.6893]
[1725926680118,3.7086,134.79,134.76,7.98]
[1725926681527,3.7083,134.8,134.76,11.6892]
[1725926683623,3.7083,134.8,134.77,7.98]
[1725926683824,3.7081,134.81,134.77,11.689]
[1725926684427,3.7077,134.82,134.79,7.98]
[1725926684731,4.1304,134.84,134.8,7.98]
[1725926684934,3.7076,134.83,134.8,7.98]
[1725926685122,4.1304,134.84,134.8,7.98]
[1725926685518,3.7078,134.82,134.8,7.98]
[1725926687530,3.7079,134.81,134.8,7.98]
[1725926687730,3.7079,134.81,134.79,7.98]
[1725926689531,4.1304,134.84,134.79,7.98]
[1725926689739,3.7078,134.82,134.8,7.98]
[1725926690536,3.7082,134.81,134.76,3.7091]
[1725926690740,12.1104,134.84,134.78,7.98]
[1725926691125,34.3404,134.84,134.78,7.98]
[1725926691327,7.98,134.82,134.76,7.98]
[1725926691633,7.98,134.82,134.74,7.98]
[1725926691634,3.7092,134.77,134.74,7.98]
[1725926691824,7.98,134.81,134.75,7.98]
[1725926692229,3.7087,134.79,134.75,11.6895]
[1725926692426,30.21,134.82,134.73,3.77344653]
[1725926692635,22.23,134.83,134.76,7.98]
[1725926692831,30.21,134.83,134.76,7.98]
[1725926693036,30.21,134.83,134.82,6.22]
[1725926693236,30.21,134.83,134.76,7.98]
[1725926693441,3.7087,134.79,134.76,7.98]
[1725926694742,3.7083,134.8,134.76,11.6892]
[1725926695039,22.23,134.81,134.76,7.98]
[1725926695229,3.708,134.81,134.77,15.39277995]
[1725926695534,22.23,134.82,134.79,7.98]
[1725926696332,25.9378,134.82,134.79,7.98]
[1725926696734,22.23,134.83,134.7,5.14990725]
[1725926696935,25.9382,134.8,134.77,7.98]
[1725926697135,22.23,134.8,134.77,7.98]
[1725926698738,25.9384,134.8,134.77,7.98]
[1725926699932,3.7086,134.79,134.77,7.98]
[1725926702041,22.23,134.83,134.77,11.68667334]
[1725926702739,22.23,134.83,134.77,3.70667334]
[1725926702937,22.23,134.83,134.77,7.98]
[1725926703139,22.23,134.8,134.7,5.14990725]
[1725926703438,30.21,134.76,134.71,7.98]
[1725926703840,3.71,134.74,134.71,7.98]
[1725926707546,22.23,134.73,134.64,2.6531]
[1725926707851,22.23,134.73,134.69,7.98]
[1725926708349,3.7105,134.72,134.69,7.98]
[1725926709039,3.7107,134.71,134.69,7.98]
[1725926709545,3.7105,134.72,134.69,7.98]
[1725926709735,24.8709,134.74,134.69,11.6912]
[1725926709939,24.8709,134.74,134.69,7.98]
[1725926710242,3.7104,134.73,134.69,14.47]
[1725926710445,22.23,134.73,134.69,14.47]
[1725926710850,3.7105,134.72,134.69,14.47]
[1725926711441,3.7103,134.73,134.69,18.1812]
[1725926712254,6.3509,134.74,134.7,11.6908]
[1725926712550,4.9841,134.74,134.7,15.40830909]
[1725926712743,22.23,134.76,134.71,7.98]
[1725926713339,3.7098,134.75,134.71,11.6907]
[1725926714147,3.7099,134.74,134.71,7.98]
[1725926714649,3.7103,134.73,134.7,11.69750909]
[1725926718450,25.9405,134.72,134.69,14.47]
[1725926718652,3.7105,134.72,134.69,14.47]
[1725926719462,25.9405,134.72,134.69,6.49]
[1725926720954,3.7102,134.73,134.69,10.2011]
[1725926721157,3.7102,134.73,134.69,18.1811]
[1725926721362,22.23,134.73,134.69,6.49]
[1725926721659,3.7106,134.72,134.69,6.49]
[1725926721852,3.7106,134.72,134.69,10.63]
[1725926724264,3.7106,134.72,134.69,14.3412]
[1725926724759,3.7102,134.73,134.69,14.3412]
[1725926725062,9.382,134.75,134.7,11.6909]
[1725926725063,1.402,134.75,134.7,11.6909]
[1725926725763,3.7102,134.73,134.7,7.98]
[1725926726457,30.21,134.73,134.69,10.63]
[1725926726665,22.23,134.71,134.69,10.63]
[1725926726861,30.21,134.71,134.69,10.63]
[1725926727063,25.941,134.7,134.69,10.63]
[1725926728667,3.711,134.7,134.69,10.63]
[1725926730367,25.941,134.7,134.69,10.63]
[1725926730668,30.21,134.7,134.58,1.397]
[1725926730854,7.98,134.63,134.57,11.60190775]
[1725926731364,3.7135,134.61,134.57,11.60190775]
[1725926731760,7.98,134.63,134.57,17.87190775]
[1725926732162,22.23,134.64,134.57,9.89190775]
[1725926732363,22.23,134.64,134.57,13.60640775]
[1725926732563,22.23,134.62,134.57,6.27]
[1725926732766,3.7135,134.61,134.57,6.27]
[1725926735771,34.71,134.65,134.57,9.93658216]
[1725926736163,3.7132,134.62,134.57,13.65108216]
[1725926737373,3.7135,134.61,134.57,13.65108216]
[1725926737668,34.71,134.65,134.57,13.65108216]
[1725926737865,3.7134,134.62,134.58,3.7142]
[1725926738067,22.23,134.64,134.57,22.41658216]
[1725926738464,22.23,134.64,134.59,16.1938]
[1725926738665,22.23,134.64,134.59,12.48]
[1725926738871,22.23,134.64,134.6,1.3626]
[1725926739171,25.9428,134.64,134.6,1.3626]
[1725926739371,3.7128,134.64,134.6,1.3626]
[1725926740073,3.7128,134.64,134.6,5.0763]
[1725926740267,3.7125,134.65,134.6,5.0763]
[1725926740776,3.7125,134.65,134.61,3.7134]
[1725926741465,3.7125,134.65,134.6,5.0762]
[1725926741668,3.7125,134.65,134.57,9.93658216]
[1725926741669,22.23,134.62,134.57,9.93658216]
[1725926741971,22.23,134.62,134.57,6.27]
[1725926742475,3.714,134.6,134.57,12.2]
[1725926742773,22.23,134.62,134.57,12.2]
[1725926743169,25.9443,134.58,134.57,10.7341]
[1725926743366,25.9443,134.58,134.48,2.6922]
[1725926743367,25.86925118,134.58,134.48,2.6922]
[1725926743570,22.23,134.56,134.48,2.6922]
[1725926743772,3.7159,134.53,134.49,3.64965648]
[1725926744368,3.7159,134.53,134.48,6.4092]
[1725926744980,3.7159,134.53,134.49,3.7167]
[1725926745278,3.716,134.52,134.48,6.42658529]
[1725926745479,22.23,134.56,134.48,10.14338529]
[1725926745678,3.7157,134.53,134.48,6.42658529]
[1725926746071,3.7157,134.53,134.49,3.7165]
[1725926746471,12.48,134.59,134.48,6.42658529]
[1725926746671,22.23,134.57,134.52,3.7159]
[1725926746880,22.23,134.57,134.5,12.48]
[1725926747282,3.7151,134.55,134.51,3.716]
[1725926747483,22.23,134.57,134.5,12.48]
[1725926747683,22.23,134.59,134.5,12.48]
[1725926748376,3.7149,134.56,134.52,3.7157]
[1725926748982,3.7149,134.56,134.51,3.7162]
[1725926748983,3.7151,134.55,134.51,3.7162]
[1725926749883,22.23,134.54,134.48,6.42658529]
[1725926750079,22.23,134.54,134.47,1.2912]
[1725926750384,25.946,134.52,134.47,5.0083]
[1725926750684,3.716,134.52,134.47,5.07325256]
[1725926751582,3.716,134.52,134.48,3.7169]
[1725926751879,3.7157,134.53,134.47,5.07325256]
[1725926752084,22.23,134.54,134.5,3.7164]
[1725926752384,3.7157,134.53,134.5,3.7164]
[1725926753179,3.7162,134.51,134.48,2.6259]
[1725926753379,22.23,134.55,134.48,2.6259]
[1725926755080,3.7157,134.53,134.49,3.7167]
[1725926755293,22.23,134.55,134.49,3.7167]
[1725926755773,3.7156,134.54,134.49,3.7167]
[1725926758285,3.7156,134.54,134.5,2.42]
[1725926760302,3.7156,134.54,134.5,6.1365]
[1725926761691,3.7157,134.53,134.5,2.42]
[1725926762780,22.23,134.55,134.5,2.42]
[1725926763587,22.23,134.53,134.5,2.42]
[1725926764401,25.9457,134.53,134.5,2.42]
[1725926765896,3.7155,134.54,134.5,6.1364]
[1725926766394,34.71,134.56,134.5,2.42]
[1725926767092,3.7159,134.53,134.5,2.42]
[1725926769801,3.716,134.52,134.5,2.42]
[1725926771089,3.7162,134.51,134.5,2.42]
[1725926771291,22.23,134.51,134.44,3.73800223]
[1725926771494,22.23,134.51,134.41,12.48]
[1725926771691,22.23,134.49,134.42,1.3709]
[1725926771896,22.23,134.49,134.42,5.11299113]
[1725926772097,22.23,134.49,134.42,1.3709]
[1725926772403,25.9475,134.47,134.43,3.7183]
[1725926773296,22.23,134.47,134.4,2.6589]
[1725926773799,25.9478,134.46,134.41,3.7189]
[1725926773999,25.9478,134.46,134.4,7.74834828]
[1725926774304,22.23,134.46,134.4,7.74834828]
[1725926775501,225.0,134.59,134.43,12.48]
[1725926775701,12.48,134.55,134.45,12.48]
[1725926775903,225.0,134.64,134.47,12.48]
[1725926776097,225.0,134.64,134.49,12.48]
[1725926776298,12.48,134.59,134.49,12.48]
[1725926776497,22.31,134.58,134.53,3.7155]
[1725926776699,22.31,134.57,134.51,12.48]
[1725926776902,12.48,134.61,134.52,2.6455]
[1725926777101,12.48,134.61,134.55,3.715]
[1725926777308,3.714,134.6,134.55,3.715]
[1725926777505,22.31,134.62,134.56,3.7148]
[1725926777709,22.31,134.62,134.53,13.8683]
[1725926777899,22.31,134.61,134.55,12.48]
[1725926778099,22.31,134.61,134.57,3.7144]
[1725926779003,3.7133,134.62,134.57,3.7144]
[1725926780602,22.31,134.63,134.55,12.48]
[1725926782102,3.7132,134.62,134.57,3.7145]
[1725926782304,22.31,134.63,134.55,12.48]
[1725926782706,22.31,134.63,134.58,3.714]
[1725926782911,22.31,134.63,134.55,12.48]
[1725926783413,3.7134,134.62,134.57,3.7144]
[1725926783816,3.7134,134.62,134.55,12.48]
[1725926783999,3.7134,134.62,134.53,1.3883]
[1725926784000,22.31,134.64,134.53,1.3883]
[1725926784205,22.31,134.62,134.53,13.8683]
[1725926784608,3.7136,134.61,134.53,13.8683]
[1725926785011,22.31,134.62,134.53,13.8683]
[1725926786113,34.79,134.61,134.53,13.8683]
[1725926786807,34.79,134.61,134.54,3.7153]
[1725926786808,3.7141,134.59,134.54,3.7153]
[1725926787518,3.7143,134.58,134.54,3.7153]
[1725926788014,12.48,134.59,134.53,1.3883]
[1725926788215,22.31,134.58,134.53,1.3883]
[1725926789314,3.7148,134.57,134.53,5.1039]
[1725926797315,3.7149,134.56,134.53,1.3883]
[1725926797710,3.7151,134.55,134.53,1.3883]
[1725926797914,34.79,134.59,134.53,1.3883]
[1725926798116,38.53125646,134.59,134.54,3.73456702]
[1725926798509,3.715,134.56,134.54,3.73456702]
[1725926800113,3.715,134.56,134.53,1.3883]
[1725926800815,3.715,134.56,134.54,3.72481069]
[1725926801216,3.715,134.56,134.53,1.3883]
[1725926801436,3.715,134.56,134.54,3.70027845]
[1725926802033,3.715,134.56,134.54,5.87]
[1725926802518,3.715,134.56,134.54,9.64758599]
[1725926803126,3.715,134.56,134.54,5.87]
[1725926803521,3.715,134.56,134.54,9.5279104]
[1725926804818,3.715,134.56,134.54,5.87]
[1725926812229,3.7146,134.57,134.54,5.87]
[1725926812429,30.31,134.58,134.54,5.87]
[1725926812831,3.7146,134.57,134.54,5.87]
[1725926813219,30.31,134.58,134.54,5.87]
[1725926813828,3.7151,134.55,134.54,5.87]
[1725926814029,123.55406138,134.71,134.54,13.87]
[1725926814030,30.31,134.6,134.54,13.87]
[1725926814232,34.09102148,134.6,134.54,13.87]
[1725926814827,30.31,134.6,134.54,13.87]
[1725926815139,3.7143,134.59,134.54,17.5852]
[1725926815828,3.7143,134.59,134.55,3.7151]
[1725926816234,8.0,134.59,134.54,5.87]
[1725926816433,8.0,134.57,134.54,5.87]
[1725926817530,11.7147,134.57,134.54,5.87]
[1725926819234,3.7149,134.56,134.54,5.87]
[1725926820427,3.7151,134.55,134.54,5.87]
[1725926820831,34.0251,134.55,134.54,5.87]
[1725926821030,30.31,134.55,134.45,2.5656]
[1725926821237,8.0,134.51,134.46,3.80331962]
[1725926821638,8.0,134.51,134.45,2.5656]
[1725926821837,8.0,134.5,134.45,14.30574156]
[1725926822028,30.31,134.47,134.29,225.0]
[1725926822227,12.5,134.48,134.38,12.5]
[1725926822437,237.5,134.54,134.4,12.5]
[1725926822438,12.5,134.5,134.4,12.5]
[1725926822635,12.5,134.53,134.4,12.5]
[1725926822837,12.5,134.53,134.42,12.5]
[1725926823139,22.31,134.52,134.42,12.5]
[1725926824226,3.7168,134.49,134.44,3.7181]
[1725926824432,3.7168,134.49,134.42,12.5]
[1725926824837,3.7168,134.49,134.43,3.7182]
[1725926825430,3.7171,134.48,134.43,3.7182]
[1725926827739,3.7173,134.47,134.43,3.7182]
[1725926828429,3.7173,134.47,134.43,7.39400092]
[1725926829036,22.31,134.5,134.44,3.7181]
[1725926829241,22.31,134.5,134.4,12.5]
[1725926829436,3.7174,134.47,134.43,3.7183]
[1725926829740,3.7174,134.47,134.43,7.35282068]
[1725926830939,34.81,134.5,134.43,3.63452068]
[1725926831136,34.81,134.5,134.4,12.5]
[1725926831434,22.31,134.5,134.4,12.5]
[1725926831643,22.31,134.5,134.4,16.24050822]
[1725926832538,3.7179,134.46,134.42,3.7186]
[1725926832747,22.31,134.5,134.42,3.7186]
[1725926833243,22.31,134.49,134.42,3.7186]
[1725926833542,22.31,134.49,134.42,7.49406276]
[1725926833838,22.31,134.49,134.42,7.41996507]
[1725926834340,3.718,134.45,134.42,7.41996507]
[1725926835429,3.7177,134.46,134.42,7.41996507]
[1725926835743,3.7177,134.46,134.43,3.7184]
[1725926836336,3.7177,134.46,134.42,7.41996507]
[1725926838442,22.31,134.49,134.43,3.7182]
[1725926839243,22.31,134.49,134.43,7.44290133]
[1725926839445,22.31,134.49,134.43,3.7182]
[1725926839634,22.31,134.49,134.43,3.75706093]
[1725926839840,22.31,134.49,134.4,14.28]
[1725926840042,3.7182,134.44,134.4,3.7191]
[1725926840242,22.31,134.46,134.4,3.7217254]
[1725926840847,3.7184,134.44,134.4,3.7217254]
[1725926841238,22.31,134.46,134.39,7.6465]
[1725926841438,3.7182,134.44,134.39,7.6465]
[1725926841845,22.31,134.46,134.39,11.34739832]
[1725926842345,3.7186,134.43,134.39,11.34739832]
[1725926843334,3.7188,134.42,134.39,3.9271]
[1725926844043,3.7185,134.43,134.39,7.66983991]
[1725926844246,9.14,134.44,134.39,7.66983991]
[1725926844447,3.7184,134.43,134.39,11.38913991]
[1725926844648,31.45,134.44,134.39,3.9271]
[1725926845049,3.7189,134.42,134.39,3.9271]
[1725926848652,22.31,134.43,134.39,3.9271]
[1725926849239,22.31,134.43,134.25,3.65531879]
[1725926849240,22.31,134.39,134.22,7.4483]
[1725926849452,22.31,134.39,134.34,9.14]
[1725926849646,31.45,134.4,134.34,12.8607]
[1725926849844,3.7197,134.39,134.34,12.8607]
[1725926850459,3.7199,134.38,134.34,3.7207]
[1725926850748,31.45,134.39,134.31,3.9716]
[1725926851050,7.4356,134.46,134.34,3.7207]
[1725926851051,9.14,134.4,134.34,3.7207]
[1725926851255,31.45,134.4,134.34,9.14]
[1725926851453,3.7203,134.37,134.33,9.14]
[1725926851645,31.45,134.4,134.33,9.14]
[1725926852043,3.72,134.38,134.33,9.14]
[1725926852248,31.45,134.4,134.33,12.861]
[1725926852648,3.72,134.38,134.33,9.14]
[1725926852857,31.45,134.4,134.33,9.14]
[1725926852858,31.45,134.4,134.33,12.8611]
[1725926853155,3.72,134.38,134.34,8.81]
[1725926853354,3.72,134.38,134.34,12.5308]
[1725926854647,3.72,134.38,134.34,16.24692723]
[1725926863158,12.8597,134.39,134.34,16.24692723]
[1725926864757,12.8597,134.39,134.35,3.7205]
[1725926865150,12.8597,134.39,134.35,7.39187238]
[1725926868560,3.7199,134.38,134.35,3.67137238]
[1725926868767,12.8599,134.38,134.34,12.5309]
[1725926869162,12.8599,134.38,134.34,16.32332182]
[1725926869554,3.7203,134.37,134.34,12.60242182]
[1725926870053,3.7203,134.37,134.34,7.51332182]
[1725926872562,12.8599,134.38,134.34,7.51332182]
[1725926873460,12.8599,134.38,134.35,8.79]
[1725926877462,26.04882921,134.41,134.35,17.93]
[1725926877664,9.14,134.45,134.39,9.14]
[1725926878269,228.78274538,134.55,134.4,9.14]
[1725926878467,9.14,134.47,134.41,6.41850559]
[1725926878665,22.31,134.54,134.42,9.14]
[1725926878869,3.7175,134.47,134.43,3.7184]
[1725926879870,9.14,134.48,134.43,3.7184]
[1725926879871,3.7171,134.48,134.43,9.14]
[1725926880374,3.7171,134.48,134.43,12.8582]
[1725926880672,3.7171,134.48,134.43,9.14]
[1725926881270,3.7171,134.48,134.44,3.7181]
[1725926881469,3.7171,134.48,134.43,9.14]
[1725926881774,3.7171,134.48,134.43,12.8583]
[1725926882470,3.7171,134.48,134.44,3.7181]
[1725926882774,12.8569,134.49,134.44,3.7181]
[1725926882966,18.5622,134.65,134.44,9.14]
[1725926882967,9.14,134.51,134.44,9.14]
[1725926883165,9.14,134.52,134.46,9.14]
[1725926883570,22.31,134.55,134.48,9.14]
[1725926883777,15.18710919,134.65,134.49,9.14]
[1725926883778,9.14,134.56,134.49,9.14]
[1725926883975,9.14,134.56,134.51,9.14]
[1725926883976,3.715,134.56,134.51,9.14]
[1725926884164,3.715,134.56,134.52,3.78123764]
[1725926884373,3.715,134.56,134.51,9.14]
[1725926884667,3.715,134.56,134.51,12.856]
[1725926884867,3.715,134.56,134.52,3.6822991]
[1725926885080,3.715,134.56,134.51,12.856]
[1725926885374,3.7151,134.55,134.51,12.856]
[1725926885681,3.7151,134.55,134.51,16.5694685]
[1725926886275,3.7151,134.55,134.51,24.1494685]
[1725926886780,3.7151,134.55,134.51,20.4334685]
[1725926888174,3.7154,134.54,134.51,7.58]
[1725926888376,9.14,134.55,134.51,7.58]
[1725926888776,9.14,134.56,134.51,7.58]
[1725926890175,3.7159,134.53,134.51,7.58]
[1725926890472,9.14,134.54,134.51,7.58]
[1725926890873,3.7157,134.53,134.51,7.58]
[1725926891081,9.14,134.55,134.51,7.58]
[1725926891672,3.7156,134.54,134.51,16.72]
[1725926892277,3.7149,134.56,134.51,20.436]
[1725926892480,9.14,134.58,134.51,16.72]
[1725926893181,31.45,134.58,134.51,11.2961]
[1725926893381,31.45,134.58,134.52,9.14]
[1725926893972,3.7152,134.55,134.52,9.14]
[1725926894171,31.45,134.58,134.52,9.14]
[1725926894380,9.14,134.56,134.51,7.58]
[1725926894584,3.7154,134.54,134.51,7.58]
[1725926894783,9.14,134.55,134.51,7.58]
[1725926895083,3.7159,134.52,134.51,7.58]
[1725926896074,12.8559,134.52,134.51,7.58]
[1725926901585,3.7159,134.52,134.51,7.58]
[1725926905886,35.1659,134.52,134.51,7.58]
[1725926906495,35.1659,134.52,134.43,7.7927]
[1725926906496,3.7172,134.48,134.43,7.7927]
[1725926906680,3.7172,134.48,134.45,9.14]
[1725926907381,3.7177,134.46,134.43,4.0743]
[1725926907583,9.14,134.46,134.43,2.6957]
[1725926908289,9.14,134.46,134.43,1.2885]
[1725926908495,9.14,134.46,134.41,9.14]
[1725926908795,3.64352302,134.47,134.41,9.14]
[1725926908994,9.14,134.46,134.41,9.14]
[1725926909188,9.14,134.46,134.41,12.92374436]
[1725926910097,12.8577,134.46,134.41,16.64264436]
[1725926910392,12.8577,134.46,134.41,12.8589]
[1725926910694,9.14,134.46,134.41,12.789846]
[1725926911889,3.7176,134.46,134.42,9.14]
[1725926912107,31.45,134.49,134.43,9.14]
[1725926912490,3.7174,134.47,134.43,9.14]
[1725926915591,3.7178,134.46,134.43,9.14]
[1725926915797,35.13024698,134.49,134.43,9.14]
[1725926916395,3.7174,134.47,134.43,9.14]
[1725926916784,3.7174,134.47,134.44,7.62]
[1725926917390,3.7172,134.48,134.44,7.62]
[1725926917786,9.14,134.5,134.44,16.76]
[1725926918397,3.717,134.49,134.44,20.478]
[1725926918893,3.717,134.49,134.44,16.76]
[1725926919493,3.717,134.49,134.44,20.478]
[1725926921109,3.7171,134.48,134.44,20.478]
[1725926922098,3.7177,134.46,134.44,7.62]
[1725926922403,9.14,134.46,134.44,7.62]
[1725926922704,3.7179,134.45,134.44,7.62]
[1725926925602,3.68034507,134.51,134.44,16.76]
[1725926925802,225.0,134.58,134.44,16.76]
[1725926925803,31.45,134.5,134.44,16.76]
[1725926925991,3.69941067,134.49,134.44,16.76]
[1725926926198,31.45,134.5,134.44,16.76]
[1725926927206,31.45,134.49,134.44,7.62]
[1725926928005,3.7177,134.46,134.44,7.62]
[1725926928200,12.8577,134.46,134.44,7.62]
[1725926928401,9.14,134.46,134.44,7.62]
[1725926929501,31.45,134.46,134.44,7.62]
[1725926929706,9.14,134.45,134.44,7.62]
[1725926930104,3.7179,134.45,134.44,7.62]
[1725926933006,26.0279,134.45,134.44,7.62]
[1725926933399,22.31,134.45,134.44,7.62]
[1725926934106,22.31,134.46,134.44,7.62]
[1725926934503,22.31,134.46,134.38,2.6804]
[1725926934504,36.6,134.45,134.2,10.63078506]
[1725926934703,22.31,134.42,134.35,2.6741]
[1725926935203,3.69316871,134.41,134.35,2.6741]
[1725926935599,26.029,134.41,134.35,2.6741]
[1725926936002,22.31,134.41,134.35,2.6741]
[1725926936515,22.31,134.45,134.35,2.6741]
[1725926937209,3.719,134.41,134.36,3.7203]
[1725926937401,22.31,134.45,134.36,14.29]
[1725926937606,22.31,134.45,134.37,14.29]
[1725926937811,22.31,134.45,134.38,1.3632]
[1725926938009,22.31,134.47,134.39,14.29]
[1725926938201,22.31,134.47,134.4,2.7081]
[1725926938406,22.31,134.47,134.41,14.29]